[Event "Titled Tuesday Blitz August 22 Early 2023"]
[White "Skliarov, Viktor"]
[Black "Manukian, Artak"]
[WhiteFideId "14106736"]
[BlackFideId "13301373"]
[WhiteElo "2685"]
[BlackElo "2398"]
[Result "1-0"]
[Round "3"]
[TimeControl "180+1"]
[Date "2023.08.22"]
[WhiteClock "0:01:02"]
[BlackClock "0:01:17"]
[Board "67"]

1. e4 {[%clk 0:03:00]}  c6 {[%clk 0:02:59]} 2. d4 {[%clk 0:03:00]}  d5 {[%clk 0:02:59]} 3. e5 {[%clk 0:03:01]}  Bf5 {[%clk 0:02:58]} 4. Nf3 {[%clk 0:03:02]}  e6 {[%clk 0:02:55]} 5. Be2 {[%clk 0:03:02]}  c5 {[%clk 0:02:53]} 6. Be3 {[%clk 0:03:02]}  Qb6 {[%clk 0:02:52]} 7. Nc3 {[%clk 0:03:02]}  Qxb2 {[%clk 0:02:52]} 8. Qb1 {[%clk 0:02:33]}  Qxb1+ {[%clk 0:02:41]} 9. Rxb1 {[%clk 0:02:32]}  c4 {[%clk 0:02:39]} 10. Rxb7 {[%clk 0:02:20]}  Bxc2 {[%clk 0:02:35]} 11. Kd2 {[%clk 0:01:58]}  Bg6 {[%clk 0:02:34]} 12. Bd1 {[%clk 0:01:54]}  Na6 {[%clk 0:01:59]} 13. Ba4+ {[%clk 0:01:48]}  Kd8 {[%clk 0:01:58]} 14. Nh4 {[%clk 0:01:46]}  Ne7 {[%clk 0:01:40]} 15. Nxg6 {[%clk 0:01:39]}  hxg6 {[%clk 0:01:35]} 16. Bg5 {[%clk 0:01:12]}  Rh5 {[%clk 0:01:28]} 17. Bxe7+ {[%clk 0:01:02]}  Bxe7 {[%clk 0:01:17]} 18. Rd7+ {[%clk 0:01:02]} 1-0


[Site "https://www.chess.com"]

[Event "Titled Tuesday Blitz August 22 Early 2023"]
[White "Korchmar, Vasiliy"]
[Black "Nosacheva, Mariya"]
[WhiteFideId "24131750"]
[BlackFideId "34111422"]
[WhiteElo "2681"]
[BlackElo "2414"]
[Result "1-0"]
[Round "3"]
[TimeControl "180+1"]
[Date "2023.08.22"]
[WhiteClock "0:00:20"]
[BlackClock "0:00:00"]
[Board "68"]

1. e4 {[%clk 0:03:00]}  c5 {[%clk 0:02:58]} 2. d4 {[%clk 0:03:00]}  cxd4 {[%clk 0:02:58]} 3. Qxd4 {[%clk 0:03:01]}  Nc6 {[%clk 0:02:55]} 4. Qd3 {[%clk 0:03:01]}  Nf6 {[%clk 0:02:53]} 5. Nc3 {[%clk 0:03:01]}  d6 {[%clk 0:02:48]} 6. Nf3 {[%clk 0:03:01]}  g6 {[%clk 0:02:48]} 7. Be2 {[%clk 0:02:59]}  Bg7 {[%clk 0:02:48]} 8. O-O {[%clk 0:02:59]}  O-O {[%clk 0:02:48]} 9. Nd5 {[%clk 0:03:00]}  Be6 {[%clk 0:02:23]} 10. Bg5 {[%clk 0:02:58]}  Bxd5 {[%clk 0:02:20]} 11. exd5 {[%clk 0:02:58]}  Nb4 {[%clk 0:02:20]} 12. Qb3 {[%clk 0:02:46]}  Nbxd5 {[%clk 0:02:10]} 13. Qxb7 {[%clk 0:02:47]}  Rb8 {[%clk 0:02:05]} 14. Qxa7 {[%clk 0:02:47]}  Rxb2 {[%clk 0:02:06]} 15. Bd3 {[%clk 0:02:41]}  Qa8 {[%clk 0:01:53]} 16. Qd4 {[%clk 0:02:31]}  Rfb8 {[%clk 0:01:49]} 17. a3 {[%clk 0:02:07]}  Nd7 {[%clk 0:01:29]} 18. Qh4 {[%clk 0:02:05]}  Nc5 {[%clk 0:01:04]} 19. Bxe7 {[%clk 0:01:51]}  Nxe7 {[%clk 0:01:04]} 20. Qxe7 {[%clk 0:01:50]}  Nxd3 {[%clk 0:01:02]} 21. cxd3 {[%clk 0:01:51]}  R2b7 {[%clk 0:01:02]} 22. Qe1 {[%clk 0:01:41]}  Bxa1 {[%clk 0:01:01]} 23. Qxa1 {[%clk 0:01:42]}  Rb2 {[%clk 0:00:54]} 24. Ng5 {[%clk 0:01:27]}  d5 {[%clk 0:00:49]} 25. h4 {[%clk 0:01:22]}  h6 {[%clk 0:00:45]} 26. Nf3 {[%clk 0:01:22]}  Qa6 {[%clk 0:00:34]} 27. Ne5 {[%clk 0:01:09]}  Qd6 {[%clk 0:00:26]} 28. d4 {[%clk 0:00:49]}  Rd2 {[%clk 0:00:20]} 29. a4 {[%clk 0:00:47]}  Rbb2 {[%clk 0:00:20]} 30. a5 {[%clk 0:00:42]}  Qa6 {[%clk 0:00:18]} 31. Qc1 {[%clk 0:00:35]}  Rbc2 {[%clk 0:00:15]} 32. Qb1 {[%clk 0:00:34]}  Rb2 {[%clk 0:00:14]} 33. Qe1 {[%clk 0:00:31]}  Qxa5 {[%clk 0:00:13]} 34. Nf3 {[%clk 0:00:31]}  Qc3 {[%clk 0:00:08]} 35. Qe8+ {[%clk 0:00:27]}  Kg7 {[%clk 0:00:08]} 36. Qe5+ {[%clk 0:00:27]}  Kg8 {[%clk 0:00:06]} 37. h5 {[%clk 0:00:22]}  Re2 {[%clk 0:00:00]} 38. Qf6 {[%clk 0:00:20]} 1-0


[Site "https://www.chess.com"]

[Event "Titled Tuesday Blitz August 22 Early 2023"]
[White "Rakhimzhan_Alen"]
[Black "Gutkin, Ilya"]
[BlackFideId "16203470"]
[WhiteElo "2655"]
[BlackElo "2378"]
[Result "1-0"]
[Round "3"]
[TimeControl "180+1"]
[Date "2023.08.22"]
[WhiteClock "0:00:49"]
[BlackClock "0:00:01"]
[Board "70"]

1. Nf3 {[%clk 0:03:00]}  d5 {[%clk 0:02:59]} 2. g3 {[%clk 0:03:00]}  g6 {[%clk 0:02:59]} 3. Bg2 {[%clk 0:02:59]}  Bg7 {[%clk 0:03:00]} 4. d4 {[%clk 0:02:59]}  Nh6 {[%clk 0:02:57]} 5. O-O {[%clk 0:02:59]}  O-O {[%clk 0:02:57]} 6. b3 {[%clk 0:02:58]}  Nf5 {[%clk 0:02:56]} 7. Bb2 {[%clk 0:02:58]}  a5 {[%clk 0:02:47]} 8. a3 {[%clk 0:02:57]}  a4 {[%clk 0:02:45]} 9. b4 {[%clk 0:02:56]}  Nd7 {[%clk 0:02:43]} 10. Nbd2 {[%clk 0:02:51]}  Nb6 {[%clk 0:02:43]} 11. c4 {[%clk 0:02:52]}  dxc4 {[%clk 0:02:43]} 12. e4 {[%clk 0:02:52]}  Nd6 {[%clk 0:02:42]} 13. Qc2 {[%clk 0:02:41]}  c6 {[%clk 0:02:34]} 14. Ne5 {[%clk 0:02:32]}  Nb5 {[%clk 0:02:28]} 15. Ndf3 {[%clk 0:02:22]}  Be6 {[%clk 0:02:10]} 16. Rfd1 {[%clk 0:02:16]}  c3 {[%clk 0:02:09]} 17. Bxc3 {[%clk 0:02:15]}  Bb3 {[%clk 0:02:09]} 18. Qb2 {[%clk 0:02:15]}  Bxd1 {[%clk 0:02:09]} 19. Rxd1 {[%clk 0:02:16]}  Nxc3 {[%clk 0:02:09]} 20. Qxc3 {[%clk 0:02:16]}  Qc7 {[%clk 0:01:45]} 21. h4 {[%clk 0:02:06]}  Rfd8 {[%clk 0:01:36]} 22. h5 {[%clk 0:02:04]}  Nd7 {[%clk 0:01:31]} 23. Nxf7 {[%clk 0:01:54]}  Rf8 {[%clk 0:00:23]} 24. N7g5 {[%clk 0:01:52]}  Qb6 {[%clk 0:00:05]} 25. Qc4+ {[%clk 0:01:50]}  Kh8 {[%clk 0:00:05]} 26. hxg6 {[%clk 0:01:45]}  Qb5 {[%clk 0:00:04]} 27. Qe6 {[%clk 0:01:35]}  Bf6 {[%clk 0:00:02]} 28. Nxh7 {[%clk 0:01:14]}  Rfd8 {[%clk 0:00:02]} 29. Qh3 {[%clk 0:01:00]}  Kg7 {[%clk 0:00:02]} 30. Bf1 {[%clk 0:00:53]}  Rh8 {[%clk 0:00:01]} 31. Bxb5 {[%clk 0:00:51]}  cxb5 {[%clk 0:00:01]} 32. Qxd7 {[%clk 0:00:50]}  Kxg6 {[%clk 0:00:02]} 33. Nxf6 {[%clk 0:00:49]}  e6 {[%clk 0:00:01]} 34. Qxe6 {[%clk 0:00:49]} 1-0


[Site "https://www.chess.com"]

[Event "Titled Tuesday Blitz August 22 Early 2023"]
[White "Battlecruiser_Operational"]
[Black "Frolyanov, Dmitry"]
[BlackFideId "4151976"]
[WhiteElo "2338"]
[BlackElo "2633"]
[Result "0-1"]
[Round "3"]
[TimeControl "180+1"]
[Date "2023.08.22"]
[WhiteClock "0:00:18"]
[BlackClock "0:01:19"]
[Board "71"]

1. e4 {[%clk 0:02:57]}  e5 {[%clk 0:02:59]} 2. Nf3 {[%clk 0:02:55]}  Nf6 {[%clk 0:02:59]} 3. d4 {[%clk 0:02:53]}  Nxe4 {[%clk 0:02:59]} 4. Bd3 {[%clk 0:02:38]}  Nc6 {[%clk 0:02:58]} 5. Bxe4 {[%clk 0:02:33]}  d5 {[%clk 0:02:58]} 6. Bd3 {[%clk 0:02:27]}  e4 {[%clk 0:02:57]} 7. Be2 {[%clk 0:02:28]}  exf3 {[%clk 0:02:57]} 8. Bxf3 {[%clk 0:02:29]}  Bd6 {[%clk 0:02:35]} 9. c3 {[%clk 0:02:16]}  O-O {[%clk 0:02:32]} 10. O-O {[%clk 0:02:15]}  Ne7 {[%clk 0:02:25]} 11. Bg5 {[%clk 0:02:06]}  c6 {[%clk 0:02:24]} 12. Nd2 {[%clk 0:02:05]}  Qc7 {[%clk 0:02:22]} 13. h3 {[%clk 0:01:41]}  h6 {[%clk 0:02:16]} 14. Bxe7 {[%clk 0:01:36]}  Qxe7 {[%clk 0:02:17]} 15. Re1 {[%clk 0:01:35]}  Qg5 {[%clk 0:02:15]} 16. Kf1 {[%clk 0:01:23]}  Bf5 {[%clk 0:02:13]} 17. Nb3 {[%clk 0:01:22]}  Qf4 {[%clk 0:02:05]} 18. Bg4 {[%clk 0:01:13]}  Qh2 {[%clk 0:01:35]} 19. Bxf5 {[%clk 0:01:00]}  Rae8 {[%clk 0:01:35]} 20. Re3 {[%clk 0:00:58]}  Qh1+ {[%clk 0:01:24]} 21. Ke2 {[%clk 0:00:58]}  Qxg2 {[%clk 0:01:23]} 22. Qg1 {[%clk 0:00:28]}  Rxe3+ {[%clk 0:01:22]} 23. Kxe3 {[%clk 0:00:29]}  Re8+ {[%clk 0:01:23]} 24. Kd2 {[%clk 0:00:24]}  Bf4+ {[%clk 0:01:21]} 25. Kc2 {[%clk 0:00:18]}  Re2+ {[%clk 0:01:20]} 26. Kd3 {[%clk 0:00:18]}  Qf3# {[%clk 0:01:19]} 0-1


[Site "https://www.chess.com"]

[Event "Titled Tuesday Blitz August 22 Early 2023"]
[White "Aslanov, Umid"]
[Black "Buraczewski, Rafal"]
[WhiteFideId "13412620"]
[BlackFideId "1155245"]
[WhiteElo "2626"]
[BlackElo "2121"]
[Result "1-0"]
[Round "3"]
[TimeControl "180+1"]
[Date "2023.08.22"]
[WhiteClock "0:00:39"]
[BlackClock "0:00:21"]
[Board "72"]

1. e4 {[%clk 0:03:00]}  e6 {[%clk 0:02:59]} 2. d4 {[%clk 0:03:01]}  d5 {[%clk 0:03:00]} 3. Nd2 {[%clk 0:03:01]}  Nf6 {[%clk 0:02:57]} 4. e5 {[%clk 0:03:01]}  Nfd7 {[%clk 0:02:58]} 5. Bd3 {[%clk 0:03:02]}  c5 {[%clk 0:02:59]} 6. c3 {[%clk 0:03:03]}  Nc6 {[%clk 0:02:59]} 7. Ne2 {[%clk 0:03:04]}  f6 {[%clk 0:02:59]} 8. exf6 {[%clk 0:03:04]}  Nxf6 {[%clk 0:02:59]} 9. O-O {[%clk 0:03:03]}  cxd4 {[%clk 0:02:59]} 10. cxd4 {[%clk 0:03:04]}  Bd6 {[%clk 0:02:59]} 11. Nf3 {[%clk 0:03:05]}  Qc7 {[%clk 0:02:59]} 12. g3 {[%clk 0:03:05]}  O-O {[%clk 0:02:59]} 13. Bf4 {[%clk 0:03:06]}  e5 {[%clk 0:02:53]} 14. dxe5 {[%clk 0:02:58]}  Nxe5 {[%clk 0:02:54]} 15. Nxe5 {[%clk 0:02:58]}  Bxe5 {[%clk 0:02:54]} 16. Rc1 {[%clk 0:02:46]}  Qd6 {[%clk 0:02:51]} 17. Bxe5 {[%clk 0:02:36]}  Qxe5 {[%clk 0:02:51]} 18. Nf4 {[%clk 0:02:24]}  Kh8 {[%clk 0:02:42]} 19. Qc2 {[%clk 0:02:18]}  Ne4 {[%clk 0:02:36]} 20. Bxe4 {[%clk 0:02:13]}  dxe4 {[%clk 0:02:34]} 21. Rfe1 {[%clk 0:02:09]}  Bf5 {[%clk 0:02:00]} 22. Qb3 {[%clk 0:01:51]}  b6 {[%clk 0:01:55]} 23. Qd5 {[%clk 0:01:49]}  Qxb2 {[%clk 0:01:48]} 24. Rc7 {[%clk 0:01:48]}  Qb4 {[%clk 0:01:35]} 25. Rd1 {[%clk 0:01:46]}  e3 {[%clk 0:01:34]} 26. fxe3 {[%clk 0:01:37]}  Be4 {[%clk 0:01:22]} 27. Qe5 {[%clk 0:01:09]}  Rg8 {[%clk 0:01:10]} 28. Ne6 {[%clk 0:00:43]}  Rae8 {[%clk 0:00:30]} 29. Rxg7 {[%clk 0:00:41]}  Rxe6 {[%clk 0:00:25]} 30. Rxg8+ {[%clk 0:00:39]}  Kxg8 {[%clk 0:00:21]} 31. Qxe6+ {[%clk 0:00:39]} 1-0


[Site "https://www.chess.com"]

[Event "Titled Tuesday Blitz August 22 Early 2023"]
[White "Sarana, Alexey"]
[Black "Dilmukhametov, Artur"]
[WhiteFideId "24133795"]
[BlackFideId "24179922"]
[WhiteElo "3024"]
[BlackElo "2175"]
[Result "1-0"]
[Round "3"]
[TimeControl "180+1"]
[Date "2023.08.22"]
[WhiteClock "0:01:35"]
[BlackClock "0:02:07"]
[Board "73"]

1. d4 {[%clk 0:01:58]}  d5 {[%clk 0:02:56]} 2. c4 {[%clk 0:01:58]}  c6 {[%clk 0:02:56]} 3. Nf3 {[%clk 0:01:57]}  Nf6 {[%clk 0:02:57]} 4. Nc3 {[%clk 0:01:58]}  a6 {[%clk 0:02:57]} 5. g3 {[%clk 0:01:57]}  Bf5 {[%clk 0:02:58]} 6. Bg2 {[%clk 0:01:56]}  e6 {[%clk 0:02:58]} 7. Nh4 {[%clk 0:01:56]}  Bg4 {[%clk 0:02:56]} 8. h3 {[%clk 0:01:56]}  Bh5 {[%clk 0:02:57]} 9. g4 {[%clk 0:01:57]}  Ne4 {[%clk 0:02:41]} 10. gxh5 {[%clk 0:01:43]}  Qxh4 {[%clk 0:02:36]} 11. Nxe4 {[%clk 0:01:43]}  dxe4 {[%clk 0:02:37]} 12. Qb3 {[%clk 0:01:44]}  Ra7 {[%clk 0:02:37]} 13. Qb6 {[%clk 0:01:41]}  Qd8 {[%clk 0:02:09]} 14. Qxa7 {[%clk 0:01:38]}  Bb4+ {[%clk 0:02:10]} 15. Kf1 {[%clk 0:01:36]}  O-O {[%clk 0:02:07]} 16. Qxb7 {[%clk 0:01:35]} 1-0


[Site "https://www.chess.com"]

[Event "Titled Tuesday Blitz August 22 Early 2023"]
[White "NovozhilovSemen"]
[Black "Ilamparthi A R"]
[BlackFideId "45015775"]
[WhiteElo "2507"]
[BlackElo "2871"]
[Result "0-1"]
[Round "3"]
[TimeControl "180+1"]
[Date "2023.08.22"]
[WhiteClock "0:00:08"]
[BlackClock "0:00:13"]
[Board "77"]

1. d4 {[%clk 0:03:00]}  d5 {[%clk 0:02:59]} 2. c4 {[%clk 0:03:00]}  e6 {[%clk 0:03:00]} 3. Nf3 {[%clk 0:03:00]}  Nf6 {[%clk 0:02:59]} 4. g3 {[%clk 0:03:00]}  Bb4+ {[%clk 0:03:00]} 5. Bd2 {[%clk 0:03:00]}  Be7 {[%clk 0:03:00]} 6. Bg2 {[%clk 0:03:01]}  Ne4 {[%clk 0:03:01]} 7. O-O {[%clk 0:03:01]}  f5 {[%clk 0:03:01]} 8. Qc2 {[%clk 0:03:00]}  c6 {[%clk 0:03:01]} 9. Nc3 {[%clk 0:02:57]}  Nd7 {[%clk 0:02:58]} 10. h4 {[%clk 0:02:57]}  Ndf6 {[%clk 0:02:57]} 11. Bf4 {[%clk 0:02:55]}  O-O {[%clk 0:02:54]} 12. Ne5 {[%clk 0:02:55]}  Qe8 {[%clk 0:02:52]} 13. Rac1 {[%clk 0:02:47]}  h6 {[%clk 0:02:50]} 14. Nxe4 {[%clk 0:02:18]}  Nxe4 {[%clk 0:02:47]} 15. f3 {[%clk 0:02:18]}  Nf6 {[%clk 0:02:45]} 16. e4 {[%clk 0:02:14]}  Nh5 {[%clk 0:02:24]} 17. Qd2 {[%clk 0:01:29]}  Nxf4 {[%clk 0:02:13]} 18. Qxf4 {[%clk 0:01:30]}  fxe4 {[%clk 0:02:13]} 19. Qe3 {[%clk 0:01:30]}  exf3 {[%clk 0:02:11]} 20. Rxf3 {[%clk 0:01:30]}  Bf6 {[%clk 0:02:08]} 21. Rcf1 {[%clk 0:01:26]}  b6 {[%clk 0:02:06]} 22. Ng4 {[%clk 0:00:59]}  Be7 {[%clk 0:01:48]} 23. cxd5 {[%clk 0:00:54]}  Rxf3 {[%clk 0:01:42]} 24. Bxf3 {[%clk 0:00:51]}  exd5 {[%clk 0:01:23]} 25. Re1 {[%clk 0:00:40]}  Bxg4 {[%clk 0:01:02]} 26. Bxg4 {[%clk 0:00:39]}  Qg6 {[%clk 0:01:02]} 27. Bd7 {[%clk 0:00:19]}  Bf6 {[%clk 0:00:53]} 28. Bxc6 {[%clk 0:00:18]}  Bxd4 {[%clk 0:00:54]} 29. Bxd5+ {[%clk 0:00:19]}  Kh8 {[%clk 0:00:52]} 30. Qxd4 {[%clk 0:00:15]}  Qxg3+ {[%clk 0:00:51]} 31. Kf1 {[%clk 0:00:16]}  Rf8+ {[%clk 0:00:37]} 32. Ke2 {[%clk 0:00:16]}  Re8+ {[%clk 0:00:18]} 33. Be4 {[%clk 0:00:16]}  Qxh4 {[%clk 0:00:18]} 34. Kf1 {[%clk 0:00:13]}  Qf4+ {[%clk 0:00:16]} 35. Kg2 {[%clk 0:00:12]}  Qg4+ {[%clk 0:00:16]} 36. Kh2 {[%clk 0:00:11]}  Rf8 {[%clk 0:00:15]} 37. Qe3 {[%clk 0:00:07]}  Qh4+ {[%clk 0:00:14]} 38. Kg1 {[%clk 0:00:07]}  Re8 {[%clk 0:00:12]} 39. Qf2 {[%clk 0:00:03]}  Qg5+ {[%clk 0:00:10]} 40. Qg2 {[%clk 0:00:03]}  Qc5+ {[%clk 0:00:10]} 41. Qf2 {[%clk 0:00:03]}  Qb4 {[%clk 0:00:10]} 42. Re2 {[%clk 0:00:03]}  Rxe4 {[%clk 0:00:08]} 43. Rd2 {[%clk 0:00:03]}  Rg4+ {[%clk 0:00:07]} 44. Kh1 {[%clk 0:00:04]}  Rh4+ {[%clk 0:00:08]} 45. Kg1 {[%clk 0:00:05]}  Qg4+ {[%clk 0:00:08]} 46. Qg2 {[%clk 0:00:05]}  Qxg2+ {[%clk 0:00:09]} 47. Kxg2 {[%clk 0:00:06]}  Rf4 {[%clk 0:00:08]} 48. Kg3 {[%clk 0:00:06]}  Rf6 {[%clk 0:00:07]} 49. Rd7 {[%clk 0:00:07]}  a5 {[%clk 0:00:08]} 50. a3 {[%clk 0:00:07]}  Kh7 {[%clk 0:00:09]} 51. b4 {[%clk 0:00:08]}  axb4 {[%clk 0:00:09]} 52. axb4 {[%clk 0:00:09]}  Rc6 {[%clk 0:00:10]} 53. Rd5 {[%clk 0:00:09]}  Rc4 {[%clk 0:00:10]} 54. Rb5 {[%clk 0:00:09]}  Rc6 {[%clk 0:00:10]} 55. Rd5 {[%clk 0:00:10]}  g5 {[%clk 0:00:11]} 56. b5 {[%clk 0:00:10]}  Rf6 {[%clk 0:00:10]} 57. Kg4 {[%clk 0:00:10]}  Kg6 {[%clk 0:00:11]} 58. Rd8 {[%clk 0:00:09]}  h5+ {[%clk 0:00:11]} 59. Kg3 {[%clk 0:00:09]}  h4+ {[%clk 0:00:12]} 60. Kh3 {[%clk 0:00:10]}  Rf3+ {[%clk 0:00:11]} 61. Kg2 {[%clk 0:00:11]}  Rf6 {[%clk 0:00:12]} 62. Kh3 {[%clk 0:00:11]}  Kf5 {[%clk 0:00:12]} 63. Re8 {[%clk 0:00:10]}  Kf4 {[%clk 0:00:12]} 64. Re1 {[%clk 0:00:10]}  g4+ {[%clk 0:00:12]} 65. Kh2 {[%clk 0:00:10]}  Kg5 {[%clk 0:00:12]} 66. Re7 {[%clk 0:00:10]}  Rf5 {[%clk 0:00:12]} 67. Rg7+ {[%clk 0:00:09]}  Kf4 {[%clk 0:00:12]} 68. Rh7 {[%clk 0:00:10]}  Rxb5 {[%clk 0:00:12]} 69. Rxh4 {[%clk 0:00:08]}  Rb2+ {[%clk 0:00:13]} 0-1


[Site "https://www.chess.com"]

[Event "Titled Tuesday Blitz August 22 Early 2023"]
[White "arenal72"]
[Black "Durarbayli, Vasif"]
[BlackFideId "13402935"]
[WhiteElo "2505"]
[BlackElo "2850"]
[Result "0-1"]
[Round "3"]
[TimeControl "180+1"]
[Date "2023.08.22"]
[WhiteClock "0:00:07"]
[BlackClock "0:00:40"]
[Board "80"]

1. e4 {[%clk 0:03:00]}  c5 {[%clk 0:02:59]} 2. Nf3 {[%clk 0:02:59]}  Nc6 {[%clk 0:02:59]} 3. d4 {[%clk 0:02:55]}  cxd4 {[%clk 0:03:00]} 4. Nxd4 {[%clk 0:02:56]}  Nf6 {[%clk 0:03:01]} 5. Nc3 {[%clk 0:02:55]}  e5 {[%clk 0:03:02]} 6. Ndb5 {[%clk 0:02:51]}  d6 {[%clk 0:03:02]} 7. Nd5 {[%clk 0:02:50]}  Nxd5 {[%clk 0:03:02]} 8. exd5 {[%clk 0:02:50]}  Ne7 {[%clk 0:02:59]} 9. a4 {[%clk 0:02:44]}  a6 {[%clk 0:02:54]} 10. Na3 {[%clk 0:02:37]}  Ng6 {[%clk 0:02:51]} 11. Be3 {[%clk 0:02:32]}  Be7 {[%clk 0:02:50]} 12. Nc4 {[%clk 0:02:28]}  O-O {[%clk 0:02:50]} 13. Be2 {[%clk 0:02:22]}  f5 {[%clk 0:02:50]} 14. f3 {[%clk 0:02:22]}  Bh4+ {[%clk 0:02:49]} 15. g3 {[%clk 0:02:19]}  Bg5 {[%clk 0:02:30]} 16. Bb6 {[%clk 0:02:18]}  Qe7 {[%clk 0:02:26]} 17. h4 {[%clk 0:02:16]}  Bf6 {[%clk 0:02:25]} 18. h5 {[%clk 0:02:14]}  Nh8 {[%clk 0:02:25]} 19. Qd2 {[%clk 0:02:12]}  Bd7 {[%clk 0:02:23]} 20. Qb4 {[%clk 0:02:01]}  Nf7 {[%clk 0:02:22]} 21. O-O-O {[%clk 0:01:48]}  Rfc8 {[%clk 0:02:19]} 22. Kb1 {[%clk 0:01:45]}  Qe8 {[%clk 0:01:59]} 23. b3 {[%clk 0:01:40]}  Qe7 {[%clk 0:01:48]} 24. Rhe1 {[%clk 0:01:28]}  e4 {[%clk 0:01:49]} 25. f4 {[%clk 0:01:26]}  Rc5 {[%clk 0:01:40]} 26. Bxc5 {[%clk 0:01:17]}  dxc5 {[%clk 0:01:41]} 27. Qb6 {[%clk 0:01:17]}  Qe8 {[%clk 0:01:29]} 28. a5 {[%clk 0:01:01]}  Bb5 {[%clk 0:01:26]} 29. Qxc5 {[%clk 0:00:35]}  Rc8 {[%clk 0:01:25]} 30. Nd6 {[%clk 0:00:29]}  Rxc5 {[%clk 0:01:15]} 31. Nxe8 {[%clk 0:00:26]}  Bxe8 {[%clk 0:01:16]} 32. c4 {[%clk 0:00:24]}  Rxa5 {[%clk 0:01:14]} 33. b4 {[%clk 0:00:23]}  Ra1+ {[%clk 0:01:11]} 34. Kc2 {[%clk 0:00:24]}  Ba4+ {[%clk 0:01:12]} 35. Kd2 {[%clk 0:00:24]}  Bxd1 {[%clk 0:01:08]} 36. Rxd1 {[%clk 0:00:25]}  Rxd1+ {[%clk 0:01:08]} 37. Bxd1 {[%clk 0:00:26]}  Kf8 {[%clk 0:00:58]} 38. c5 {[%clk 0:00:23]}  Bd4 {[%clk 0:00:58]} 39. g4 {[%clk 0:00:22]}  fxg4 {[%clk 0:00:55]} 40. Bxg4 {[%clk 0:00:23]}  a5 {[%clk 0:00:55]} 41. bxa5 {[%clk 0:00:19]}  Bxc5 {[%clk 0:00:55]} 42. Bf5 {[%clk 0:00:19]}  e3+ {[%clk 0:00:54]} 43. Kd3 {[%clk 0:00:18]}  h6 {[%clk 0:00:54]} 44. Bc8 {[%clk 0:00:14]}  Nd6 {[%clk 0:00:54]} 45. a6 {[%clk 0:00:15]}  bxa6 {[%clk 0:00:45]} 46. Bxa6 {[%clk 0:00:15]}  Ke7 {[%clk 0:00:46]} 47. Ke2 {[%clk 0:00:15]}  Kf6 {[%clk 0:00:46]} 48. Bd3 {[%clk 0:00:15]}  Nc8 {[%clk 0:00:43]} 49. Kf3 {[%clk 0:00:14]}  Nb6 {[%clk 0:00:44]} 50. Ke4 {[%clk 0:00:12]}  Ke7 {[%clk 0:00:41]} 51. Bb5 {[%clk 0:00:10]}  Kd6 {[%clk 0:00:41]} 52. Bc6 {[%clk 0:00:07]}  e2 {[%clk 0:00:40]} 0-1


[Site "https://www.chess.com"]

[Event "Titled Tuesday Blitz August 22 Early 2023"]
[White "Pakleza, Zbigniew"]
[Black "Czerw, Dawid"]
[WhiteFideId "1119290"]
[BlackFideId "1145746"]
[WhiteElo "2842"]
[BlackElo "2504"]
[Result "1-0"]
[Round "3"]
[TimeControl "180+1"]
[Date "2023.08.22"]
[WhiteClock "0:00:06"]
[BlackClock "0:00:00"]
[Board "81"]

1. d4 {[%clk 0:03:00]}  Nf6 {[%clk 0:02:57]} 2. Nf3 {[%clk 0:03:00]}  g6 {[%clk 0:02:57]} 3. Bf4 {[%clk 0:03:00]}  Bg7 {[%clk 0:02:55]} 4. e3 {[%clk 0:03:01]}  O-O {[%clk 0:02:46]} 5. Be2 {[%clk 0:03:01]}  d6 {[%clk 0:02:40]} 6. h3 {[%clk 0:03:01]}  b6 {[%clk 0:02:38]} 7. O-O {[%clk 0:03:01]}  Bb7 {[%clk 0:02:38]} 8. c3 {[%clk 0:03:02]}  Nbd7 {[%clk 0:02:38]} 9. Nbd2 {[%clk 0:03:02]}  c5 {[%clk 0:02:37]} 10. a4 {[%clk 0:03:02]}  a6 {[%clk 0:02:35]} 11. Bh2 {[%clk 0:03:02]}  Qc7 {[%clk 0:02:31]} 12. Bd3 {[%clk 0:02:56]}  Qb8 {[%clk 0:02:17]} 13. Qe2 {[%clk 0:02:53]}  Qa7 {[%clk 0:02:17]} 14. e4 {[%clk 0:02:52]}  Ne8 {[%clk 0:01:48]} 15. e5 {[%clk 0:02:22]}  dxe5 {[%clk 0:01:47]} 16. dxe5 {[%clk 0:02:23]}  e6 {[%clk 0:01:45]} 17. Rfd1 {[%clk 0:02:01]}  Rd8 {[%clk 0:01:42]} 18. Bg3 {[%clk 0:01:59]}  Nc7 {[%clk 0:01:29]} 19. Nc4 {[%clk 0:01:43]}  Nd5 {[%clk 0:01:07]} 20. Nd6 {[%clk 0:01:40]}  Nb8 {[%clk 0:00:52]} 21. Be4 {[%clk 0:01:18]}  Bc6 {[%clk 0:00:46]} 22. h4 {[%clk 0:01:15]}  h5 {[%clk 0:00:44]} 23. Ng5 {[%clk 0:01:11]}  Ne7 {[%clk 0:00:30]} 24. Ndxf7 {[%clk 0:00:56]}  Rxd1+ {[%clk 0:00:29]} 25. Rxd1 {[%clk 0:00:57]}  Rxf7 {[%clk 0:00:22]} 26. Nxe6 {[%clk 0:00:34]}  Bxe4 {[%clk 0:00:19]} 27. Qxe4 {[%clk 0:00:35]}  Nbc6 {[%clk 0:00:17]} 28. Rd6 {[%clk 0:00:23]}  Qb7 {[%clk 0:00:13]} 29. Nd8 {[%clk 0:00:17]}  Qc7 {[%clk 0:00:06]} 30. Nxc6 {[%clk 0:00:08]}  Nxc6 {[%clk 0:00:05]} 31. Rxc6 {[%clk 0:00:09]}  Qe7 {[%clk 0:00:04]} 32. Rxg6 {[%clk 0:00:07]}  Kh8 {[%clk 0:00:03]} 33. Rg5 {[%clk 0:00:06]}  Bh6 {[%clk 0:00:01]} 34. Rxh5 {[%clk 0:00:06]}  Kg7 {[%clk 0:00:02]} 35. Rf5 {[%clk 0:00:05]}  Qe6 {[%clk 0:00:01]} 36. Rxf7+ {[%clk 0:00:04]}  Kxf7 {[%clk 0:00:01]} 37. Qh7+ {[%clk 0:00:04]}  Bg7 {[%clk 0:00:02]} 38. Qe4 {[%clk 0:00:03]}  Qb3 {[%clk 0:00:02]} 39. Qb7+ {[%clk 0:00:03]}  Kg6 {[%clk 0:00:02]} 40. Qxa6 {[%clk 0:00:03]}  Qd1+ {[%clk 0:00:02]} 41. Kh2 {[%clk 0:00:03]}  Qd2 {[%clk 0:00:03]} 42. Qxb6+ {[%clk 0:00:03]}  Kh7 {[%clk 0:00:03]} 43. Qd6 {[%clk 0:00:03]}  Qxb2 {[%clk 0:00:04]} 44. Qd3+ {[%clk 0:00:04]}  Kg8 {[%clk 0:00:04]} 45. c4 {[%clk 0:00:04]}  Qa2 {[%clk 0:00:03]} 46. Qd5+ {[%clk 0:00:04]}  Kh7 {[%clk 0:00:03]} 47. Qxc5 {[%clk 0:00:05]}  Qxa4 {[%clk 0:00:03]} 48. Qd5 {[%clk 0:00:05]}  Qb3 {[%clk 0:00:03]} 49. Qe4+ {[%clk 0:00:05]}  Kg8 {[%clk 0:00:04]} 50. c5 {[%clk 0:00:06]}  Qc3 {[%clk 0:00:03]} 51. c6 {[%clk 0:00:06]}  Bf8 {[%clk 0:00:02]} 52. e6 {[%clk 0:00:06]}  Be7 {[%clk 0:00:02]} 53. c7 {[%clk 0:00:06]}  Qxc7 {[%clk 0:00:00]} 54. Bxc7 {[%clk 0:00:06]} 1-0


[Site "https://www.chess.com"]